[Event "*** Titled Tuesday Blitz"]
[Site "Chess.com"]
[Date "2020.05.12"]
[Round "8"]
[White "GMStefanova"]
[Black "Godzillator"]
[Result "0-1"]
[WhiteElo "2617"]
[BlackElo "2473"]
[TimeControl "180+1"]
[EndTime "11:34:10 PDT"]
[Termination "Godzillator won by resignation"]

1. d4 {[%clk 0:03:00.9]} 1... d5 {[%clk 0:02:59.9]} 2. Nf3 {[%clk 0:02:59.8]}
2... Nf6 {[%clk 0:02:59.6]} 3. c4 {[%clk 0:02:59]} 3... c6 {[%clk 0:02:59.8]} 4.
Qb3 {[%clk 0:02:57]} 4... dxc4 {[%clk 0:02:59.1]} 5. Qxc4 {[%clk 0:02:56.8]}
5... Bf5 {[%clk 0:02:59.2]} 6. g3 {[%clk 0:02:55.2]} 6... e6 {[%clk 0:02:59.3]}
7. Bg2 {[%clk 0:02:52.4]} 7... Be7 {[%clk 0:02:59.3]} 8. O-O {[%clk 0:02:50.6]}
8... O-O {[%clk 0:02:59.3]} 9. Nc3 {[%clk 0:02:41.4]} 9... Nbd7 {[%clk
0:02:59.2]} 10. Qb3 {[%clk 0:02:37.8]} 10... Ne4 {[%clk 0:02:55]} 11. Qxb7
{[%clk 0:02:18.8]} 11... Nxc3 {[%clk 0:02:54.8]} 12. bxc3 {[%clk 0:02:17.6]}
12... c5 {[%clk 0:02:52.7]} 13. Ba3 {[%clk 0:02:08.1]} 13... Rb8 {[%clk
0:02:29]} 14. Qa6 {[%clk 0:02:06.6]} 14... Be4 {[%clk 0:02:17.2]} 15. Rfd1
{[%clk 0:02:02.7]} 15... Qc7 {[%clk 0:02:09.3]} 16. dxc5 {[%clk 0:01:52.5]}
16... Nxc5 {[%clk 0:02:08.1]} 17. Qc4 {[%clk 0:01:51.8]} 17... Bd5 {[%clk
0:02:04.9]} 18. Qf4 {[%clk 0:01:51]} 18... Bd6 {[%clk 0:02:01.9]} 19. Qe3 {[%clk
0:01:47.6]} 19... Ne4 {[%clk 0:01:54.7]} 20. Bxd6 {[%clk 0:01:46.5]} 20... Nxd6
{[%clk 0:01:54.4]} 21. Ng5 {[%clk 0:01:35.7]} 21... Bxg2 {[%clk 0:01:52.8]} 22.
Kxg2 {[%clk 0:01:35]} 22... h6 {[%clk 0:01:49.8]} 23. Nf3 {[%clk 0:01:30.1]}
23... Rfc8 {[%clk 0:01:48.3]} 24. Rac1 {[%clk 0:01:29.2]} 24... Rb2 {[%clk
0:01:45.4]} 25. Qe5 {[%clk 0:01:24.3]} 25... Nc4 {[%clk 0:01:42.2]} 26. Qxc7
{[%clk 0:01:23.3]} 26... Rxc7 {[%clk 0:01:42.1]} 27. Rd8+ {[%clk 0:01:21.9]}
27... Kh7 {[%clk 0:01:41.6]} 28. Nd4 {[%clk 0:01:20.6]} 28... Rxa2 {[%clk
0:01:38.3]} 29. Nb5 {[%clk 0:01:16.9]} 29... Rb7 {[%clk 0:01:34.2]} 30. Nd4
{[%clk 0:01:16.4]} 30... a5 {[%clk 0:01:22.3]} 31. Rc8 {[%clk 0:01:05.1]} 31...
Ne5 {[%clk 0:01:15.9]} 32. c4 {[%clk 0:00:59.4]} 32... Rd7 {[%clk 0:01:09.9]}
33. Nf3 {[%clk 0:00:48.1]} 33... Nxf3 {[%clk 0:01:01.1]} 34. Kxf3 {[%clk
0:00:47.4]} 34... Rdd2 {[%clk 0:00:56.6]} 35. Re1 {[%clk 0:00:44.7]} 35... Rdc2
{[%clk 0:00:54.3]} 36. c5 {[%clk 0:00:43.8]} 36... Rc3+ {[%clk 0:00:53.1]} 37.
Kg2 {[%clk 0:00:41.8]} 37... Rac2 {[%clk 0:00:53.2]} 38. Rd1 {[%clk 0:00:34.3]}
38... Rxc5 {[%clk 0:00:50.3]} 39. Rxc5 {[%clk 0:00:33.3]} 39... Rxc5 {[%clk
0:00:49.8]} 40. Rd7 {[%clk 0:00:33.8]} 40... Kg6 {[%clk 0:00:49.7]} 41. Ra7
{[%clk 0:00:33.5]} 41... Kf6 {[%clk 0:00:49.4]} 42. h4 {[%clk 0:00:33.1]} 42...
g5 {[%clk 0:00:49.2]} 43. hxg5+ {[%clk 0:00:32.6]} 43... hxg5 {[%clk 0:00:49.1]}
44. g4 {[%clk 0:00:31.5]} 44... Kg6 {[%clk 0:00:37]} 45. e3 {[%clk 0:00:29.7]}
45... f5 {[%clk 0:00:36]} 46. Kg3 {[%clk 0:00:27.7]} 46... Kf6 {[%clk
0:00:30.8]} 47. gxf5 {[%clk 0:00:20.6]} 47... exf5 {[%clk 0:00:29.7]} 48. f4
{[%clk 0:00:15]} 48... gxf4+ {[%clk 0:00:26.8]} 49. Kxf4 {[%clk 0:00:14.3]}
49... Rc4+ {[%clk 0:00:27.1]} 50. Kf3 {[%clk 0:00:14]} 50... a4 {[%clk
0:00:27.4]} 51. Ke2 {[%clk 0:00:13.3]} 51... Ke5 {[%clk 0:00:23.8]} 52. Kd3
{[%clk 0:00:12.7]} 52... Rb4 {[%clk 0:00:23.2]} 53. Ra5+ {[%clk 0:00:12]} 53...
Kf6 {[%clk 0:00:23.1]} 54. Ra6+ {[%clk 0:00:10.4]} 54... Kg5 {[%clk 0:00:22.9]}
55. Kc3 {[%clk 0:00:08.3]} 55... Re4 {[%clk 0:00:20.4]} 56. Kd3 {[%clk 0:00:08]}
56... Kg4 {[%clk 0:00:19.6]} 57. Ra5 {[%clk 0:00:08.1]} 57... Rb4 {[%clk
0:00:14]} 58. Kc3 {[%clk 0:00:08.2]} 58... Rb3+ {[%clk 0:00:13.4]} 59. Kd4
{[%clk 0:00:07.5]} 59... a3 {[%clk 0:00:10.5]} 60. e4 {[%clk 0:00:06.5]} 60...
f4 {[%clk 0:00:10.2]} 61. e5 {[%clk 0:00:06]} 61... f3 {[%clk 0:00:10.4]} 62.
Ra8 {[%clk 0:00:05.1]} 62... f2 {[%clk 0:00:10]} 63. Rf8 {[%clk 0:00:04.8]}
63... Kg3 {[%clk 0:00:09.6]} 64. e6 {[%clk 0:00:03.7]} 64... a2 {[%clk
0:00:10.1]} 65. e7 {[%clk 0:00:03]} 65... a1=Q+ {[%clk 0:00:10.2]} 0-1

[Event "*** Titled Tuesday Blitz"]
[Site "Chess.com"]
[Date "2020.05.12"]
[Round "8"]
[White "AsaHoffmann"]
[Black "salomez"]
[Result "1/2-1/2"]
[WhiteElo "2376"]
[BlackElo "2247"]
[TimeControl "180+1"]
[EndTime "11:34:10 PDT"]
[Termination "Game drawn - insufficient material"]

1. d4 {[%clk 0:02:58.2]} 1... Nf6 {[%clk 0:03:00.4]} 2. Bg5 {[%clk 0:02:57]}
2... g6 {[%clk 0:03:01.3]} 3. Nc3 {[%clk 0:02:55.3]} 3... Bg7 {[%clk 0:03:00.3]}
4. e4 {[%clk 0:02:53.7]} 4... d6 {[%clk 0:03:00.4]} 5. f3 {[%clk 0:02:52.9]}
5... c6 {[%clk 0:02:58]} 6. Qd3 {[%clk 0:02:52.1]} 6... Nbd7 {[%clk 0:02:58.2]}
7. O-O-O {[%clk 0:02:47.7]} 7... O-O {[%clk 0:02:56.7]} 8. Qd2 {[%clk
0:02:45.7]} 8... Qc7 {[%clk 0:02:55.6]} 9. Bh6 {[%clk 0:02:44.7]} 9... e5 {[%clk
0:02:56.5]} 10. Nge2 {[%clk 0:02:43.8]} 10... Nb6 {[%clk 0:02:48.7]} 11. b3
{[%clk 0:02:40.6]} 11... a5 {[%clk 0:02:47.6]} 12. a4 {[%clk 0:02:39.2]} 12...
Be6 {[%clk 0:02:41.4]} 13. h4 {[%clk 0:02:38.4]} 13... c5 {[%clk 0:02:27]} 14.
Nb5 {[%clk 0:02:35.1]} 14... Qe7 {[%clk 0:02:23.4]} 15. Bxg7 {[%clk 0:02:29.4]}
15... Kxg7 {[%clk 0:02:23.2]} 16. dxe5 {[%clk 0:02:28.8]} 16... dxe5 {[%clk
0:02:22.8]} 17. Qd6 {[%clk 0:02:27.9]} 17... Qxd6 {[%clk 0:02:17.6]} 18. Rxd6
{[%clk 0:02:26.5]} 18... Nc8 {[%clk 0:02:16.4]} 19. Rxe6 {[%clk 0:02:14.7]}
19... c4 {[%clk 0:02:16.8]} 20. Rxe5 {[%clk 0:02:08.8]} 20... cxb3 {[%clk
0:01:49.7]} 21. cxb3 {[%clk 0:02:07]} 21... Nb6 {[%clk 0:01:45.6]} 22. Nec3
{[%clk 0:02:05.3]} 22... Rac8 {[%clk 0:01:43.8]} 23. Kb2 {[%clk 0:02:04.4]}
23... Rfd8 {[%clk 0:01:41.8]} 24. Kc2 {[%clk 0:01:54.4]} 24... Nfd7 {[%clk
0:01:31.9]} 25. Re7 {[%clk 0:01:42.9]} 25... Kf6 {[%clk 0:01:22.7]} 26. Rxd7
{[%clk 0:01:40.8]} 26... Rxd7 {[%clk 0:01:22]} 27. h5 {[%clk 0:01:38.7]} 27...
g5 {[%clk 0:01:16.6]} 28. h6 {[%clk 0:01:37]} 28... Rcd8 {[%clk 0:01:15.8]} 29.
Be2 {[%clk 0:01:28.9]} 29... Rd2+ {[%clk 0:01:15.4]} 30. Kc1 {[%clk 0:01:28.2]}
30... Kg6 {[%clk 0:00:55.7]} 31. Rd1 {[%clk 0:01:23.5]} 31... Rxd1+ {[%clk
0:00:55.3]} 32. Bxd1 {[%clk 0:01:21.8]} 32... Kxh6 {[%clk 0:00:56.2]} 33. Be2
{[%clk 0:01:18.7]} 33... Kg6 {[%clk 0:00:54.9]} 34. g4 {[%clk 0:01:17.1]} 34...
Kf6 {[%clk 0:00:53.3]} 35. Kc2 {[%clk 0:01:15.5]} 35... Ke5 {[%clk 0:00:53.3]}
36. Na3 {[%clk 0:01:12.7]} 36... Kf4 {[%clk 0:00:51.4]} 37. Nc4 {[%clk
0:01:09.8]} 37... Nxc4 {[%clk 0:00:49.6]} 38. bxc4 {[%clk 0:01:09.2]} 38... Ke3
{[%clk 0:00:48]} 39. Bd1 {[%clk 0:01:02.6]} 39... Rc8 {[%clk 0:00:20.8]} 40.
Nd5+ {[%clk 0:00:44.2]} 40... Kd4 {[%clk 0:00:16.2]} 41. Be2 {[%clk 0:00:42.9]}
41... h5 {[%clk 0:00:14.5]} 42. gxh5 {[%clk 0:00:41.7]} 42... Rh8 {[%clk
0:00:12.5]} 43. Kd2 {[%clk 0:00:39.5]} 43... Rxh5 {[%clk 0:00:11.5]} 44. f4
{[%clk 0:00:39.1]} 44... Rh2 {[%clk 0:00:11.5]} 45. fxg5 {[%clk 0:00:38.5]}
45... Kxe4 {[%clk 0:00:11.1]} 46. Ne3 {[%clk 0:00:31.6]} 46... Kf4 {[%clk
0:00:08.8]} 47. c5 {[%clk 0:00:25.5]} 47... Kxg5 {[%clk 0:00:08.7]} 48. Nc4
{[%clk 0:00:25.1]} 48... f5 {[%clk 0:00:08.1]} 49. Nxa5 {[%clk 0:00:24.2]} 49...
f4 {[%clk 0:00:08.3]} 50. Kd3 {[%clk 0:00:23.6]} 50... Rh3+ {[%clk 0:00:07.3]}
51. Kd4 {[%clk 0:00:21.7]} 51... Ra3 {[%clk 0:00:06]} 52. Nxb7 {[%clk
0:00:19.6]} 52... Rxa4+ {[%clk 0:00:06.2]} 53. Ke5 {[%clk 0:00:19.1]} 53... Ra2
{[%clk 0:00:05.1]} 54. Bf3 {[%clk 0:00:18.2]} 54... Ra3 {[%clk 0:00:05.2]} 55.
Bd5 {[%clk 0:00:16.8]} 55... f3 {[%clk 0:00:05.1]} 56. Bxf3 {[%clk 0:00:14.9]}
56... Rxf3 {[%clk 0:00:04.3]} 57. c6 {[%clk 0:00:14.4]} 57... Rc3 {[%clk
0:00:04.8]} 58. Kd6 {[%clk 0:00:13.9]} 58... Rxc6+ {[%clk 0:00:04.7]} 59. Kxc6
{[%clk 0:00:13.2]} 1/2-1/2

[Event "*** Titled Tuesday Blitz"]
[Site "Chess.com"]
[Date "2020.05.12"]
[Round "8"]
[White "noblerone"]
[Black "Sethu0025"]
[Result "1-0"]
[WhiteElo "2435"]
[BlackElo "2709"]
[TimeControl "180+1"]
[EndTime "11:34:11 PDT"]
[Termination "noblerone won by resignation"]

1. d4 {[%clk 0:03:00.9]} 1... d6 {[%clk 0:02:59.3]} 2. Nf3 {[%clk 0:02:57.4]}
2... g6 {[%clk 0:02:59.3]} 3. g3 {[%clk 0:02:56.8]} 3... Bg7 {[%clk 0:02:59.8]}
4. Bg2 {[%clk 0:02:57.5]} 4... Nf6 {[%clk 0:02:59.9]} 5. O-O {[%clk 0:02:57.7]}
5... O-O {[%clk 0:03:00.7]} 6. c4 {[%clk 0:02:57.3]} 6... Nbd7 {[%clk
0:03:01.2]} 7. Nc3 {[%clk 0:02:57.2]} 7... e5 {[%clk 0:03:01.9]} 8. b3 {[%clk
0:02:53.4]} 8... Re8 {[%clk 0:02:59.7]} 9. dxe5 {[%clk 0:02:52.6]} 9... dxe5
{[%clk 0:02:56.9]} 10. e4 {[%clk 0:02:44.6]} 10... c6 {[%clk 0:02:53]} 11. Bb2
{[%clk 0:02:42.1]} 11... Qc7 {[%clk 0:02:48.7]} 12. Rc1 {[%clk 0:02:36.7]} 12...
Nc5 {[%clk 0:02:42.1]} 13. Qe2 {[%clk 0:02:35.4]} 13... Bg4 {[%clk 0:02:38.5]}
14. h3 {[%clk 0:02:26.3]} 14... Bxf3 {[%clk 0:02:37.3]} 15. Bxf3 {[%clk
0:02:27.2]} 15... Qc8 {[%clk 0:02:18.8]} 16. Bg2 {[%clk 0:02:26.5]} 16... Ne6
{[%clk 0:02:18.9]} 17. Na4 {[%clk 0:02:25.4]} 17... Nd7 {[%clk 0:02:15.8]} 18.
c5 {[%clk 0:02:15.1]} 18... Qc7 {[%clk 0:02:13.1]} 19. Rfd1 {[%clk 0:02:13.7]}
19... Rad8 {[%clk 0:02:13]} 20. b4 {[%clk 0:02:03.2]} 20... Nd4 {[%clk
0:02:10.1]} 21. Qc4 {[%clk 0:01:55.1]} 21... Nf8 {[%clk 0:02:03.9]} 22. Bxd4
{[%clk 0:01:46.9]} 22... exd4 {[%clk 0:02:03.6]} 23. f4 {[%clk 0:01:44]} 23...
h5 {[%clk 0:02:00.9]} 24. e5 {[%clk 0:01:41.8]} 24... Ne6 {[%clk 0:02:00.5]} 25.
h4 {[%clk 0:01:41.7]} 25... Qe7 {[%clk 0:01:44.5]} 26. Nb2 {[%clk 0:01:39.2]}
26... f6 {[%clk 0:01:25.9]} 27. exf6 {[%clk 0:01:36.4]} 27... Qxf6 {[%clk
0:01:26]} 28. Nd3 {[%clk 0:01:30]} 28... Kh7 {[%clk 0:01:26]} 29. Re1 {[%clk
0:01:28.1]} 29... Qf5 {[%clk 0:01:24.6]} 30. Rcd1 {[%clk 0:01:24.8]} 30... Qg4
{[%clk 0:01:23.1]} 31. Kh2 {[%clk 0:01:17]} 31... Nc7 {[%clk 0:01:14.8]} 32. Nf2
{[%clk 0:01:11.4]} 32... Qd7 {[%clk 0:01:12.8]} 33. Ne4 {[%clk 0:01:09.6]} 33...
Nd5 {[%clk 0:01:12.4]} 34. Ng5+ {[%clk 0:01:09.7]} 34... Kh8 {[%clk 0:01:10.9]}
35. Bxd5 {[%clk 0:01:08]} 35... cxd5 {[%clk 0:01:11]} 36. Qd3 {[%clk 0:01:08.1]}
36... Qc6 {[%clk 0:00:56.1]} 37. Nf7+ {[%clk 0:01:00.4]} 37... Kg8 {[%clk
0:00:54.5]} 38. Nxd8 {[%clk 0:01:01.3]} 38... Rxd8 {[%clk 0:00:55.2]} 39. Re2
{[%clk 0:01:00.9]} 39... a5 {[%clk 0:00:49.5]} 40. a3 {[%clk 0:01:00.9]} 40...
axb4 {[%clk 0:00:48.4]} 41. axb4 {[%clk 0:01:01.8]} 41... Qf6 {[%clk 0:00:41.7]}
42. Rde1 {[%clk 0:01:00.8]} 42... Rd7 {[%clk 0:00:39.9]} 43. Re6 {[%clk
0:00:56.7]} 43... Qf5 {[%clk 0:00:38.8]} 44. Qxf5 {[%clk 0:00:52.8]} 44... gxf5
{[%clk 0:00:39.7]} 45. b5 {[%clk 0:00:47.3]} 45... Kf7 {[%clk 0:00:39.3]} 46. c6
{[%clk 0:00:47.3]} 46... bxc6 {[%clk 0:00:39.5]} 47. bxc6 {[%clk 0:00:48.2]}
47... Rc7 {[%clk 0:00:37.1]} 48. Rd6 {[%clk 0:00:48.5]} 48... d3 {[%clk
0:00:32.4]} 49. Rd7+ {[%clk 0:00:45.3]} 49... Rxd7 {[%clk 0:00:32.3]} 50. cxd7
{[%clk 0:00:46.2]} 50... Bf6 {[%clk 0:00:33.2]} 51. Kg2 {[%clk 0:00:44]} 51...
d4 {[%clk 0:00:31]} 52. Kf3 {[%clk 0:00:39.8]} 52... d2 {[%clk 0:00:31.2]} 53.
Rd1 {[%clk 0:00:40]} 53... Ke7 {[%clk 0:00:31.9]} 54. Rxd2 {[%clk 0:00:40.5]}
54... Kxd7 {[%clk 0:00:32.4]} 55. Ke2 {[%clk 0:00:40.8]} 55... Ke6 {[%clk
0:00:32.1]} 56. Kd3 {[%clk 0:00:41.3]} 56... Kf7 {[%clk 0:00:30.5]} 57. Ra2
{[%clk 0:00:40.7]} 57... Kg6 {[%clk 0:00:30.5]} 58. Ra6 {[%clk 0:00:39.8]} 58...
Kf7 {[%clk 0:00:30.2]} 59. Rd6 {[%clk 0:00:36.3]} 59... Ke7 {[%clk 0:00:29.9]}
60. Ra6 {[%clk 0:00:35.3]} 60... Kf7 {[%clk 0:00:29.9]} 61. Kc4 {[%clk
0:00:28.6]} 61... Ke7 {[%clk 0:00:28.9]} 62. Ra3 {[%clk 0:00:25.3]} 62... Kd6
{[%clk 0:00:28.2]} 63. Ra6+ {[%clk 0:00:24.8]} 63... Ke7 {[%clk 0:00:28.3]} 64.
Kd5 {[%clk 0:00:25.2]} 64... d3 {[%clk 0:00:28.1]} 65. Ra7+ {[%clk 0:00:25.7]}
65... Kf8 {[%clk 0:00:27.9]} 66. Ke6 {[%clk 0:00:21.8]} 66... Bc3 {[%clk
0:00:26.2]} 67. Rf7+ {[%clk 0:00:20.7]} 67... Kg8 {[%clk 0:00:24.9]} 68. Rxf5
{[%clk 0:00:21.6]} 68... d2 {[%clk 0:00:25.4]} 69. Rd5 {[%clk 0:00:21.8]} 69...
Kg7 {[%clk 0:00:26]} 70. Kf5 {[%clk 0:00:21.9]} 70... Kh6 {[%clk 0:00:25.7]} 71.
Ke4 {[%clk 0:00:21.5]} 71... Kg6 {[%clk 0:00:24.7]} 72. Ke3 {[%clk 0:00:21.2]}
72... Ba5 {[%clk 0:00:24.7]} 73. Rxd2 {[%clk 0:00:20.9]} 73... Bxd2+ {[%clk
0:00:24.5]} 74. Kxd2 {[%clk 0:00:21.8]} 74... Kf5 {[%clk 0:00:25.3]} 75. Ke2
{[%clk 0:00:21.7]} 75... Kg4 {[%clk 0:00:26.2]} 76. Kf2 {[%clk 0:00:21.5]} 1-0

[Event "*** Titled Tuesday Blitz"]
[Site "Chess.com"]
[Date "2020.05.12"]
[Round "8"]
[White "MisiekZielony"]
[Black "calin_dragomirescu"]
[Result "1/2-1/2"]
[WhiteElo "2123"]
[BlackElo "2287"]
[TimeControl "180+1"]
[EndTime "11:34:14 PDT"]
[Termination "Game drawn - insufficient material"]

1. c4 {[%clk 0:02:59.6]} 1... g6 {[%clk 0:03:00.2]} 2. Nc3 {[%clk 0:02:58.5]}
2... Bg7 {[%clk 0:03:00.5]} 3. g3 {[%clk 0:02:59.1]} 3... Nf6 {[%clk 0:02:59.5]}
4. Bg2 {[%clk 0:02:59.3]} 4... O-O {[%clk 0:03:00.4]} 5. e4 {[%clk 0:02:59.5]}
5... d6 {[%clk 0:02:59.6]} 6. Nge2 {[%clk 0:03:00]} 6... c5 {[%clk 0:02:59.8]}
7. O-O {[%clk 0:03:00.2]} 7... Nc6 {[%clk 0:03:00.4]} 8. d3 {[%clk 0:03:00.5]}
8... Bd7 {[%clk 0:03:00.8]} 9. h3 {[%clk 0:03:00.6]} 9... a6 {[%clk 0:03:01.1]}
10. Be3 {[%clk 0:02:59]} 10... Rb8 {[%clk 0:03:01]} 11. a4 {[%clk 0:02:57.9]}
11... Ne8 {[%clk 0:03:00.8]} 12. d4 {[%clk 0:02:50.6]} 12... cxd4 {[%clk
0:02:59.4]} 13. Nxd4 {[%clk 0:02:49.6]} 13... Nc7 {[%clk 0:02:59.3]} 14. Kh2
{[%clk 0:02:27.2]} 14... Ne6 {[%clk 0:02:56.6]} 15. Nde2 {[%clk 0:02:24.8]}
15... h5 {[%clk 0:02:47.3]} 16. f4 {[%clk 0:02:19.7]} 16... Nc5 {[%clk
0:02:39.8]} 17. Rb1 {[%clk 0:02:14.7]} 17... a5 {[%clk 0:02:39.2]} 18. b3 {[%clk
0:02:10.3]} 18... Nb4 {[%clk 0:02:35.9]} 19. Nd4 {[%clk 0:02:04.3]} 19... Qc7
{[%clk 0:02:25]} 20. Nd5 {[%clk 0:01:49.5]} 20... Nxd5 {[%clk 0:02:20.2]} 21.
exd5 {[%clk 0:01:49]} 21... Rfe8 {[%clk 0:02:09.5]} 22. Bg1 {[%clk 0:01:44.9]}
22... Bf6 {[%clk 0:02:08]} 23. Rb2 {[%clk 0:01:40.3]} 23... Qb6 {[%clk
0:02:04.8]} 24. Rb1 {[%clk 0:01:33.5]} 24... Qc7 {[%clk 0:02:02.5]} 25. Nb5
{[%clk 0:01:32.3]} 25... Bxb5 {[%clk 0:02:01.8]} 26. axb5 {[%clk 0:01:31.7]}
26... b6 {[%clk 0:02:01.1]} 27. g4 {[%clk 0:01:21.4]} 27... hxg4 {[%clk
0:02:00.3]} 28. hxg4 {[%clk 0:01:21.3]} 28... Bg7 {[%clk 0:01:47.3]} 29. Bd4
{[%clk 0:01:18]} 29... Bxd4 {[%clk 0:01:45]} 30. Qxd4 {[%clk 0:01:17.7]} 30...
Qd7 {[%clk 0:01:45.3]} 31. Kg3 {[%clk 0:01:16.9]} 31... f6 {[%clk 0:01:45.2]}
32. g5 {[%clk 0:01:07.7]} 32... Kg7 {[%clk 0:01:37.5]} 33. Bh3 {[%clk
0:01:06.8]} 33... Qd8 {[%clk 0:01:30.4]} 34. f5 {[%clk 0:00:50.3]} 34... Rh8
{[%clk 0:01:27.3]} 35. fxg6 {[%clk 0:00:49.6]} 35... Rxh3+ {[%clk 0:01:24]} 36.
Kxh3 {[%clk 0:00:48.7]} 36... Qd7+ {[%clk 0:01:24.3]} 37. Kg2 {[%clk 0:00:44.6]}
37... Rf8 {[%clk 0:01:14.1]} 38. gxf6+ {[%clk 0:00:41.1]} 38... Rxf6 {[%clk
0:01:12.9]} 39. Rxf6 {[%clk 0:00:39.1]} 39... exf6 {[%clk 0:01:13.1]} 40. Qh4
{[%clk 0:00:37.8]} 40... Kxg6 {[%clk 0:01:08.1]} 41. Rf1 {[%clk 0:00:33.8]}
41... f5 {[%clk 0:00:59.5]} 42. Rh1 {[%clk 0:00:30]} 42... Qg7 {[%clk
0:00:50.8]} 43. Kh2 {[%clk 0:00:25.7]} 43... Qb2+ {[%clk 0:00:39.8]} 44. Kh3
{[%clk 0:00:22.9]} 44... Qxb3+ {[%clk 0:00:40]} 45. Qg3+ {[%clk 0:00:22.6]}
45... Qxg3+ {[%clk 0:00:39]} 46. Kxg3 {[%clk 0:00:23]} 46... Kf6 {[%clk
0:00:39.6]} 47. Kf4 {[%clk 0:00:22.7]} 47... Nd3+ {[%clk 0:00:38.8]} 48. Ke3
{[%clk 0:00:21.8]} 48... Ne5 {[%clk 0:00:38.8]} 49. Kd4 {[%clk 0:00:21.9]} 49...
Nf3+ {[%clk 0:00:38.3]} 50. Kc3 {[%clk 0:00:21]} 50... Ke5 {[%clk 0:00:37.4]}
51. Rh6 {[%clk 0:00:20.6]} 51... f4 {[%clk 0:00:35]} 52. Re6+ {[%clk 0:00:20]}
52... Kf5 {[%clk 0:00:34.8]} 53. Rxd6 {[%clk 0:00:20.3]} 53... Ne5 {[%clk
0:00:32.2]} 54. Rxb6 {[%clk 0:00:13.8]} 54... f3 {[%clk 0:00:31.2]} 55. Rh6
{[%clk 0:00:12]} 55... Ke4 {[%clk 0:00:30]} 56. Rh1 {[%clk 0:00:10.1]} 56... a4
{[%clk 0:00:27.1]} 57. b6 {[%clk 0:00:09.1]} 57... a3 {[%clk 0:00:26.1]} 58. b7
{[%clk 0:00:08.4]} 58... Nd7 {[%clk 0:00:26.2]} 59. c5 {[%clk 0:00:08.7]} 59...
Kxd5 {[%clk 0:00:24.2]} 60. Ra1 {[%clk 0:00:05.8]} 60... Kc6 {[%clk 0:00:21]}
61. b8=Q {[%clk 0:00:04]} 61... Nxb8 {[%clk 0:00:20.3]} 62. Kd3 {[%clk
0:00:04.5]} 62... Nd7 {[%clk 0:00:20.2]} 63. Rxa3 {[%clk 0:00:05.1]} 63... Nxc5+
{[%clk 0:00:20.2]} 64. Ke3 {[%clk 0:00:04]} 64... Kb5 {[%clk 0:00:19.9]} 65.
Kxf3 {[%clk 0:00:04.6]} 65... Kb4 {[%clk 0:00:20.8]} 66. Rb3+ {[%clk 0:00:04.3]}
66... Kxb3 {[%clk 0:00:20.4]} 1/2-1/2

[Event "*** Titled Tuesday Blitz"]
[Site "Chess.com"]
[Date "2020.05.12"]
[Round "8"]
[White "northridgehawk"]
[Black "Nikithebest"]
[Result "0-1"]
[WhiteElo "2248"]
[BlackElo "2386"]
[TimeControl "180+1"]
[EndTime "11:34:18 PDT"]
[Termination "Nikithebest won by resignation"]

1. e4 {[%clk 0:03:00.6]} 1... c5 {[%clk 0:02:59.1]} 2. Nf3 {[%clk 0:03:00.8]}
2... d6 {[%clk 0:02:59.6]} 3. d4 {[%clk 0:03:00.5]} 3... cxd4 {[%clk 0:03:00.4]}
4. Nxd4 {[%clk 0:03:01.4]} 4... Nf6 {[%clk 0:03:01.1]} 5. Nc3 {[%clk 0:03:01.4]}
5... g6 {[%clk 0:03:01.6]} 6. Be3 {[%clk 0:03:00.6]} 6... a6 {[%clk 0:03:02.3]}
7. h3 {[%clk 0:02:58.5]} 7... b5 {[%clk 0:02:57.6]} 8. g4 {[%clk 0:02:57.7]}
8... Bb7 {[%clk 0:02:57]} 9. Bg2 {[%clk 0:02:57.8]} 9... Qc7 {[%clk 0:02:43.6]}
10. O-O {[%clk 0:02:52.9]} 10... Bg7 {[%clk 0:02:43.7]} 11. Qe2 {[%clk
0:02:38.3]} 11... O-O {[%clk 0:02:43.7]} 12. Nd5 {[%clk 0:02:32.1]} 12... Qd8
{[%clk 0:02:25.1]} 13. c3 {[%clk 0:02:29.4]} 13... Nbd7 {[%clk 0:02:03]} 14. f4
{[%clk 0:02:17.5]} 14... e5 {[%clk 0:01:57]} 15. Nb3 {[%clk 0:02:08]} 15... Nxd5
{[%clk 0:01:50]} 16. exd5 {[%clk 0:02:07.9]} 16... exf4 {[%clk 0:01:49.1]} 17.
Bxf4 {[%clk 0:02:08.8]} 17... Ne5 {[%clk 0:01:49.7]} 18. Rad1 {[%clk 0:02:03.4]}
18... Rc8 {[%clk 0:01:49.4]} 19. Kh2 {[%clk 0:02:01.1]} 19... Re8 {[%clk
0:01:49.7]} 20. Qf2 {[%clk 0:02:00.6]} 20... Qd7 {[%clk 0:01:41.9]} 21. Na5
{[%clk 0:01:50.2]} 21... Ba8 {[%clk 0:01:42.1]} 22. Rfe1 {[%clk 0:01:45.3]}
22... Qc7 {[%clk 0:01:42.6]} 23. Nb3 {[%clk 0:01:40.6]} 23... Nc4 {[%clk
0:01:43.1]} 24. Nd4 {[%clk 0:01:36.9]} 24... Ne5 {[%clk 0:01:36.7]} 25. Nc6
{[%clk 0:01:28.7]} 25... Bxc6 {[%clk 0:01:31]} 26. dxc6 {[%clk 0:01:29.6]} 26...
Nxc6 {[%clk 0:01:23.7]} 27. Rxd6 {[%clk 0:01:15.3]} 27... Be5 {[%clk 0:01:05.6]}
28. Rxe5 {[%clk 0:01:02.4]} 28... Nxe5 {[%clk 0:01:04.8]} 29. Rd5 {[%clk
0:00:57.6]} 29... f6 {[%clk 0:01:04.5]} 30. g5 {[%clk 0:00:57.3]} 30... fxg5
{[%clk 0:00:47.9]} 31. Bg3 {[%clk 0:00:52.6]} 31... Qg7 {[%clk 0:00:41.8]} 32.
Qb6 {[%clk 0:00:40.8]} 32... Rc6 {[%clk 0:00:26.3]} 33. Qd4 {[%clk 0:00:17.9]}
33... Rce6 {[%clk 0:00:26.8]} 34. Rd6 {[%clk 0:00:15.2]} 34... Rxd6 {[%clk
0:00:24.4]} 35. Qxd6 {[%clk 0:00:16.1]} 35... Nf7 {[%clk 0:00:25]} 36. Qxa6
{[%clk 0:00:15.1]} 36... Re2 {[%clk 0:00:21.8]} 37. Qxb5 {[%clk 0:00:14.7]}
37... Re7 {[%clk 0:00:15.5]} 38. Qb8+ {[%clk 0:00:13.8]} 38... Qf8 {[%clk
0:00:12.9]} 39. Qb4 {[%clk 0:00:14.4]} 39... Qe8 {[%clk 0:00:13.3]} 40. Bd5
{[%clk 0:00:14.5]} 40... Re2+ {[%clk 0:00:13.4]} 41. Kg1 {[%clk 0:00:15]} 41...
Kg7 {[%clk 0:00:13.9]} 42. Qd4+ {[%clk 0:00:14.7]} 42... Kh6 {[%clk 0:00:13.8]}
43. h4 {[%clk 0:00:14.6]} 43... gxh4 {[%clk 0:00:13.8]} 44. Qxh4+ {[%clk
0:00:14.8]} 44... Kg7 {[%clk 0:00:14.2]} 45. Qd4+ {[%clk 0:00:15.7]} 45... Kf8
{[%clk 0:00:13.7]} 46. Bf3 {[%clk 0:00:15.9]} 46... Re7 {[%clk 0:00:13.5]} 47.
c4 {[%clk 0:00:14.4]} 47... Qd8 {[%clk 0:00:12.6]} 48. Bd5 {[%clk 0:00:14.6]}
48... Qe8 {[%clk 0:00:10]} 49. c5 {[%clk 0:00:15]} 49... Re2 {[%clk 0:00:07.8]}
50. Bd6+ {[%clk 0:00:14.4]} 50... Nxd6 {[%clk 0:00:08]} 51. Qh8+ {[%clk
0:00:14.5]} 51... Ke7 {[%clk 0:00:08.2]} 52. Qg7+ {[%clk 0:00:13.6]} 52... Nf7
{[%clk 0:00:09]} 53. Bxf7 {[%clk 0:00:12.8]} 53... Qxf7 {[%clk 0:00:09.9]} 54.
Qd4 {[%clk 0:00:12.6]} 54... Re6 {[%clk 0:00:10]} 55. c6 {[%clk 0:00:12.5]}
55... Rxc6 {[%clk 0:00:09.9]} 56. Qe4+ {[%clk 0:00:12.5]} 56... Re6 {[%clk
0:00:10.4]} 57. Qb7+ {[%clk 0:00:12]} 57... Kf6 {[%clk 0:00:11.3]} 58. b4 {[%clk
0:00:08.6]} 58... Qxb7 {[%clk 0:00:11.2]} 0-1